Workbook

Sheet Hoja1
F2: CORRAL 2 - BARRIO INDUSTRIAL
F3: VEHICULOS EN CUSTODIA | AG3: Tipo vehículos
AG4: Automovil
AG5: Biciceta o similar
AG6: Camión
A7: N° | B7: PPU | C7: fecha ingreso | D7: Tipo vehículo | E7: Costo diario corral | F7: Año Fab. | G7: Marca | H7: Modelo | I7: Color | J7: Motivo de Ingreso | K7: Tribunal | L7: CAUSA ROL/RIT/RUT | M7: Propietario | N7: DIAS EN CORRAL | O7: MONTO ADEUDADO | P7: Fecha retiro de corral | Q7: Monto pagado | R7: Link documentos entrega | S7: Columna1 | AG7: Camioneta
A8: 14 | B8: BGVC28 | C8: 2022-07-21 | D8: Station wagon | E8: =IF(Tabla3[[#This Row],[Tipo vehículo]]="","Sin fecha ingreso",LOOKUP(Tabla3[[#This Row],[Tipo vehículo]],Tabla2[Tipo vehículo],Tabla2[Valor diario])) -> 1586 | F8: 2008 | G8: HYUNDAI | H8: SANTA FE GL 2,7 | I8: Azul | J8: ACCIDENTE DE TRANSITO | K8: JUZGADO POLICIA LOCAL | L8: PARTE 1028-2022, OF. 411-2022 DE CARABINREOS CASABLANCA | M8: MARCOS DANIEL FLORES AMAYA | N8: =IF(Tabla3[[#This Row],[fecha ingreso]]>0,TODAY()-Tabla3[[#This Row],[fecha ingreso]],"Sin fecha de ingreso") -> 473 | O8: =IF(Tabla3[[#This Row],[Costo diario corral]]="Sin fecha ingreso","faltan datos",Tabla3[[#This Row],[Costo diario corral]]*Tabla3[[#This Row],[DIAS EN CORRAL]]) -> 750178 | AG8: Carro arrastre
A9: 62 | B9: BHXT15 | C9: 2021-11-25 | D9: Automovil | E9: =IF(Tabla3[[#This Row],[Tipo vehículo]]="","Sin fecha ingreso",LOOKUP(Tabla3[[#This Row],[Tipo vehículo]],Tabla2[Tipo vehículo],Tabla2[Valor diario])) -> 1586 | F9: 2008 | G9: TOYOTA | H9: YARIS XLI 1.5 | I9: AZUL GRISACEO METAL | J9: Documentación Vencida | K9: JUZGADO POLICIA LOCAL | L9: Parte 150 1911-2022 | M9: VICTORIA JOCELYN CONSTANZO GUERRA | N9: =IF(Tabla3[[#This Row],[fecha ingreso]]>0,TODAY()-Tabla3[[#This Row],[fecha ingreso]],"Sin fecha de ingreso") -> 711 | O9: =IF(Tabla3[[#This Row],[Costo diario corral]]="Sin fecha ingreso","faltan datos",Tabla3[[#This Row],[Costo diario corral]]*Tabla3[[#This Row],[DIAS EN CORRAL]]) -> 1127646 | AG9: Cuatrimoto
A10: 18 | B10: BVGG50 | C10: 2021-10-12 | D10: Automovil | E10: =IF(Tabla3[[#This Row],[Tipo vehículo]]="","Sin fecha ingreso",LOOKUP(Tabla3[[#This Row],[Tipo vehículo]],Tabla2[Tipo vehículo],Tabla2[Valor diario])) -> 1586 | F10: 2009 | G10: CHEVROLET | H10: CORSA PLUS NB 1.6 | I10: BLANCO BRIGHT | J10: ABANDONADO VIA PUBLICA | K10: JUZGADO POLICIA LOCAL | L10: OFICIO Nº 1.017 | M10: RODRIGO ESTEBAN FUENTES ALVAREZ | N10: =IF(Tabla3[[#This Row],[fecha ingreso]]>0,TODAY()-Tabla3[[#This Row],[fecha ingreso]],"Sin fecha de ingreso") -> 755 | O10: =IF(Tabla3[[#This Row],[Costo diario corral]]="Sin fecha ingreso","faltan datos",Tabla3[[#This Row],[Costo diario corral]]*Tabla3[[#This Row],[DIAS EN CORRAL]]) -> 1197430 | AG10: Furgón
A11: 57 | B11: BZ2516 | C11: 2019-07-11 | D11: Automovil | E11: =IF(Tabla3[[#This Row],[Tipo vehículo]]="","Sin fecha ingreso",LOOKUP(Tabla3[[#This Row],[Tipo vehículo]],Tabla2[Tipo vehículo],Tabla2[Valor diario])) -> 1586 | F11: 1988 | G11: LADA | H11: 21051 | I11: BLANCO | J11: RETIRO DE LA CALLE POR INSPECTOR | K11: JUZGADO POLICIA LOCAL | L11: PARTE : 2565 | M11: MIGUEL ANGEL CORDOVA ACEVEDO | N11: =IF(Tabla3[[#This Row],[fecha ingreso]]>0,TODAY()-Tabla3[[#This Row],[fecha ingreso]],"Sin fecha de ingreso") -> 1579 | O11: =IF(Tabla3[[#This Row],[Costo diario corral]]="Sin fecha ingreso","faltan datos",Tabla3[[#This Row],[Costo diario corral]]*Tabla3[[#This Row],[DIAS EN CORRAL]]) -> 2504294 | AG11: Maquinaria industrial
A12: 54 | B12: CR4411 | D12: Camioneta | E12: =IF(Tabla3[[#This Row],[Tipo vehículo]]="","Sin fecha ingreso",LOOKUP(Tabla3[[#This Row],[Tipo vehículo]],Tabla2[Tipo vehículo],Tabla2[Valor diario])) -> 1586 | F12: 1981 | G12: TOYOTA | H12: HI LUX 2000 | I12: AZUL | M12: SEGUNDO RODRIGO ALEGRE ARANEDA | N12: =IF(Tabla3[[#This Row],[fecha ingreso]]>0,TODAY()-Tabla3[[#This Row],[fecha ingreso]],"Sin fecha de ingreso") -> Sin fecha de ingreso | O12: =IF(Tabla3[[#This Row],[Costo diario corral]]="Sin fecha ingreso","faltan datos",Tabla3[[#This Row],[Costo diario corral]]*Tabla3[[#This Row],[DIAS EN CORRAL]]) ->  | AG12: Microbus
A13: 3 | B13: CS8791 | D13: CAMIÓN | E13: =IF(Tabla3[[#This Row],[Tipo vehículo]]="","Sin fecha ingreso",LOOKUP(Tabla3[[#This Row],[Tipo vehículo]],Tabla2[Tipo vehículo],Tabla2[Valor diario])) -> 3173 | F13: 1981 | G13: CHEVROLET | H13: C 30 | I13: ROJO | M13: PEDRO ENRIQUE ZAVALA HERNANDEZ | N13: =IF(Tabla3[[#This Row],[fecha ingreso]]>0,TODAY()-Tabla3[[#This Row],[fecha ingreso]],"Sin fecha de ingreso") -> Sin fecha de ingreso | O13: =IF(Tabla3[[#This Row],[Costo diario corral]]="Sin fecha ingreso","faltan datos",Tabla3[[#This Row],[Costo diario corral]]*Tabla3[[#This Row],[DIAS EN CORRAL]]) ->  | AG13: Minibús
A14: 51 | B14: CXDX93 | C14: 2022-05-31 | D14: Automovil | E14: =IF(Tabla3[[#This Row],[Tipo vehículo]]="","Sin fecha ingreso",LOOKUP(Tabla3[[#This Row],[Tipo vehículo]],Tabla2[Tipo vehículo],Tabla2[Valor diario])) -> 1586 | F14: 2011 | G14: TOYOTA | H14: COROLLA XLI 1.6 | I14: GRIS OSCURO METALICO | J14: LEY 20000 | K14: FISCALIA LOCAL DE VALPARAISO | L14: RUC 1501126040-0 | M14: TRANSPORTES Y AUTOMOTORA CENTROAUTOS SPA | N14: =IF(Tabla3[[#This Row],[fecha ingreso]]>0,TODAY()-Tabla3[[#This Row],[fecha ingreso]],"Sin fecha de ingreso") -> 524 | O14: =IF(Tabla3[[#This Row],[Costo diario corral]]="Sin fecha ingreso","faltan datos",Tabla3[[#This Row],[Costo diario corral]]*Tabla3[[#This Row],[DIAS EN CORRAL]]) -> 831064 | AG14: Minibús escolar
A15: 37 | B15: DI1213 | E15: =IF(Tabla3[[#This Row],[Tipo vehículo]]="","Sin fecha ingreso",LOOKUP(Tabla3[[#This Row],[Tipo vehículo]],Tabla2[Tipo vehículo],Tabla2[Valor diario])) -> Sin fecha ingreso | N15: =IF(Tabla3[[#This Row],[fecha ingreso]]>0,TODAY()-Tabla3[[#This Row],[fecha ingreso]],"Sin fecha de ingreso") -> Sin fecha de ingreso | O15: =IF(Tabla3[[#This Row],[Costo diario corral]]="Sin fecha ingreso","faltan datos",Tabla3[[#This Row],[Costo diario corral]]*Tabla3[[#This Row],[DIAS EN CORRAL]]) -> faltan datos | AG15: Moto
A16: 19 | B16: DJ7830 | D16: Automovil | E16: =IF(Tabla3[[#This Row],[Tipo vehículo]]="","Sin fecha ingreso",LOOKUP(Tabla3[[#This Row],[Tipo vehículo]],Tabla2[Tipo vehículo],Tabla2[Valor diario])) -> 1586 | F16: 1991 | G16: TOYOTA | H16: COROLLA 1.3 GL SEDAN | I16: BLANCO | M16: PAMELA VERONICA VILLALOBOS RUIZ | N16: =IF(Tabla3[[#This Row],[fecha ingreso]]>0,TODAY()-Tabla3[[#This Row],[fecha ingreso]],"Sin fecha de ingreso") -> Sin fecha de ingreso | O16: =IF(Tabla3[[#This Row],[Costo diario corral]]="Sin fecha ingreso","faltan datos",Tabla3[[#This Row],[Costo diario corral]]*Tabla3[[#This Row],[DIAS EN CORRAL]]) ->  | AG16: Station wagon
A17: 70 | B17: DN3261 | C17: 2021-04-21 | D17: Automovil | E17: =IF(Tabla3[[#This Row],[Tipo vehículo]]="","Sin fecha ingreso",LOOKUP(Tabla3[[#This Row],[Tipo vehículo]],Tabla2[Tipo vehículo],Tabla2[Valor diario])) -> 1586 | F17: 1991 | G17: CHEVROLET | H17: MONZA SL 1.8 | I17: BLANCO EVEREST | J17: SIN DOCUMENTOS | K17: JUZGADO POLICIA LOCAL | L17: PARTE: 367 | M17: BERNARDO JOSE PARDO DIAZ | N17: =IF(Tabla3[[#This Row],[fecha ingreso]]>0,TODAY()-Tabla3[[#This Row],[fecha ingreso]],"Sin fecha de ingreso") -> 929 | O17: =IF(Tabla3[[#This Row],[Costo diario corral]]="Sin fecha ingreso","faltan datos",Tabla3[[#This Row],[Costo diario corral]]*Tabla3[[#This Row],[DIAS EN CORRAL]]) -> 1473394 | AG17: Taxi básico
A18: 39 | B18: DP6521 | C18: 2019-07-11 | D18: Camioneta | E18: =IF(Tabla3[[#This Row],[Tipo vehículo]]="","Sin fecha ingreso",LOOKUP(Tabla3[[#This Row],[Tipo vehículo]],Tabla2[Tipo vehículo],Tabla2[Valor diario])) -> 1586 | F18: 1992 | G18: CHEVROLET | H18: LUV 2.3 STD | I18: BLANCO | J18: Abandonado en la vía pública | K18: JUZGADO POLICIA LOCAL | L18: Of 263 Inspección | M18: ENRIQUE EUGENIO VILLEGAS GAZMURI | N18: =IF(Tabla3[[#This Row],[fecha ingreso]]>0,TODAY()-Tabla3[[#This Row],[fecha ingreso]],"Sin fecha de ingreso") -> 1579 | O18: =IF(Tabla3[[#This Row],[Costo diario corral]]="Sin fecha ingreso","faltan datos",Tabla3[[#This Row],[Costo diario corral]]*Tabla3[[#This Row],[DIAS EN CORRAL]]) -> 2504294 | AG18: Taxi colectivo
A19: 66 | B19: DR3046 | D19: Automovil | E19: =IF(Tabla3[[#This Row],[Tipo vehículo]]="","Sin fecha ingreso",LOOKUP(Tabla3[[#This Row],[Tipo vehículo]],Tabla2[Tipo vehículo],Tabla2[Valor diario])) -> 1586 | F19: 1992 | G19: TOYOTA | H19: CORONA 2.0 GL DLX AUT | I19: BLANCO | M19: CARMEN HAYDEE LANDAUR BURGOS | N19: =IF(Tabla3[[#This Row],[fecha ingreso]]>0,TODAY()-Tabla3[[#This Row],[fecha ingreso]],"Sin fecha de ingreso") -> Sin fecha de ingreso | O19: =IF(Tabla3[[#This Row],[Costo diario corral]]="Sin fecha ingreso","faltan datos",Tabla3[[#This Row],[Costo diario corral]]*Tabla3[[#This Row],[DIAS EN CORRAL]]) ->  | AG19: Taxi ejecutivo
A20: 42 | B20: DRJL87 | C20: 2019-07-11 | D20: Automovil | E20: =IF(Tabla3[[#This Row],[Tipo vehículo]]="","Sin fecha ingreso",LOOKUP(Tabla3[[#This Row],[Tipo vehículo]],Tabla2[Tipo vehículo],Tabla2[Valor diario])) -> 1586 | F20: 2012 | G20: MAZDA | H20: 3 V 1.6 AT | I20: NEGRO | J20: Abandonado en la vía pública | K20: JUZGADO POLICIA LOCAL | L20: Oficio 149 Inspección de fecha 11-07-2019 | M20: LUIS ALFREDO HERNANDEZ GONZALEZ | N20: =IF(Tabla3[[#This Row],[fecha ingreso]]>0,TODAY()-Tabla3[[#This Row],[fecha ingreso]],"Sin fecha de ingreso") -> 1579 | O20: =IF(Tabla3[[#This Row],[Costo diario corral]]="Sin fecha ingreso","faltan datos",Tabla3[[#This Row],[Costo diario corral]]*Tabla3[[#This Row],[DIAS EN CORRAL]]) -> 2504294 | AG20: Taxi turismo
A21: 17 | B21: DT9712 | C21: 2019-04-04 | D21: Automovil | E21: =IF(Tabla3[[#This Row],[Tipo vehículo]]="","Sin fecha ingreso",LOOKUP(Tabla3[[#This Row],[Tipo vehículo]],Tabla2[Tipo vehículo],Tabla2[Valor diario])) -> 1586 | F21: 2012 | G21: MAZDA | H21: 3 V 1.6 AT | I21: NEGRO | J21: TRANSFERIDO DESDE CARABINEROS PEÑUELA | K21: FISCALIA DE CASABLANCA | M21: LUIS ALFREDO HERNANDEZ GONZALEZ | N21: =IF(Tabla3[[#This Row],[fecha ingreso]]>0,TODAY()-Tabla3[[#This Row],[fecha ingreso]],"Sin fecha de ingreso") -> 1677 | O21: =IF(Tabla3[[#This Row],[Costo diario corral]]="Sin fecha ingreso","faltan datos",Tabla3[[#This Row],[Costo diario corral]]*Tabla3[[#This Row],[DIAS EN CORRAL]]) -> 2659722 | AG21: Taxibus
A22: 35 | B22: DXFH50 | C22: 2022-03-17 | D22: Automovil | E22: =IF(Tabla3[[#This Row],[Tipo vehículo]]="","Sin fecha ingreso",LOOKUP(Tabla3[[#This Row],[Tipo vehículo]],Tabla2[Tipo vehículo],Tabla2[Valor diario])) -> 1586 | F22: 2012 | G22: CHEVROLET | H22: SPARK LITE HB 1.0 | I22: BLANCO | J22: Abandonado en la vía pública | K22: JUZGADO POLICIA LOCAL | L22: PARTE 170-2021, Of. 1145-2022 de Carabineros de Casablanca | M22: IVAN ALEJANDRO BUSTAMANTE ROMERO | N22: =IF(Tabla3[[#This Row],[fecha ingreso]]>0,TODAY()-Tabla3[[#This Row],[fecha ingreso]],"Sin fecha de ingreso") -> 599 | O22: =IF(Tabla3[[#This Row],[Costo diario corral]]="Sin fecha ingreso","faltan datos",Tabla3[[#This Row],[Costo diario corral]]*Tabla3[[#This Row],[DIAS EN CORRAL]]) -> 950014 | AG22: Todo terreno
A23: 7 | B23: DY4321 | C23: 2019-03-08 | D23: Station wagon | E23: =IF(Tabla3[[#This Row],[Tipo vehículo]]="","Sin fecha ingreso",LOOKUP(Tabla3[[#This Row],[Tipo vehículo]],Tabla2[Tipo vehículo],Tabla2[Valor diario])) -> 1586 | F23: 1992 | G23: FIAT | H23: DUNA 1.6 SE | I23: BLANCO | J23: RETIRO DE LA CALLE POR INSPECTOR | M23: JOSE GILMAR ALVARADO ALBORTA | N23: =IF(Tabla3[[#This Row],[fecha ingreso]]>0,TODAY()-Tabla3[[#This Row],[fecha ingreso]],"Sin fecha de ingreso") -> 1704 | O23: =IF(Tabla3[[#This Row],[Costo diario corral]]="Sin fecha ingreso","faltan datos",Tabla3[[#This Row],[Costo diario corral]]*Tabla3[[#This Row],[DIAS EN CORRAL]]) -> 2702544 | AG23: Tractocamión
A24: 69 | B24: DZ1337 | C24: 2020-06-03 | D24: Automovil | E24: =IF(Tabla3[[#This Row],[Tipo vehículo]]="","Sin fecha ingreso",LOOKUP(Tabla3[[#This Row],[Tipo vehículo]],Tabla2[Tipo vehículo],Tabla2[Valor diario])) -> 1586 | F24: 1992 | G24: LADA | H24: 2105 SEDAN | I24: ROJO RUBINO | J24: MAL ESTADO | K24: JUZGADO POLICIA LOCAL | L24: 13.835.732-4 | M24: MANUEL ALEJANDRO LLANQUILEF MARIGUAL | N24: =IF(Tabla3[[#This Row],[fecha ingreso]]>0,TODAY()-Tabla3[[#This Row],[fecha ingreso]],"Sin fecha de ingreso") -> 1251 | O24: =IF(Tabla3[[#This Row],[Costo diario corral]]="Sin fecha ingreso","faltan datos",Tabla3[[#This Row],[Costo diario corral]]*Tabla3[[#This Row],[DIAS EN CORRAL]]) -> 1984086 | AG24: Triciclo (torito)
A25: 50 | B25: FSWX71 | D25: Automovil | E25: =IF(Tabla3[[#This Row],[Tipo vehículo]]="","Sin fecha ingreso",LOOKUP(Tabla3[[#This Row],[Tipo vehículo]],Tabla2[Tipo vehículo],Tabla2[Valor diario])) -> 1586 | F25: 2013 | G25: TOYOTA | H25: YARIS GLI 1.5 | I25: ROJO MICA METALICO | M25: LORENA DEL PILAR VILCHES ARANCIBIA | N25: =IF(Tabla3[[#This Row],[fecha ingreso]]>0,TODAY()-Tabla3[[#This Row],[fecha ingreso]],"Sin fecha de ingreso") -> Sin fecha de ingreso | O25: =IF(Tabla3[[#This Row],[Costo diario corral]]="Sin fecha ingreso","faltan datos",Tabla3[[#This Row],[Costo diario corral]]*Tabla3[[#This Row],[DIAS EN CORRAL]]) -> 
A26: 58 | B26: FWJW12 | D26: Automovil | E26: =IF(Tabla3[[#This Row],[Tipo vehículo]]="","Sin fecha ingreso",LOOKUP(Tabla3[[#This Row],[Tipo vehículo]],Tabla2[Tipo vehículo],Tabla2[Valor diario])) -> 1586 | F26: 2013 | G26: CHERY | H26: IQ 1.1 | I26: BLANCO | M26: CESAR ANTONIO OPAZO ROCCO | N26: =IF(Tabla3[[#This Row],[fecha ingreso]]>0,TODAY()-Tabla3[[#This Row],[fecha ingreso]],"Sin fecha de ingreso") -> Sin fecha de ingreso | O26: =IF(Tabla3[[#This Row],[Costo diario corral]]="Sin fecha ingreso","faltan datos",Tabla3[[#This Row],[Costo diario corral]]*Tabla3[[#This Row],[DIAS EN CORRAL]]) -> 
A27: 1 | B27: GDBF23 | D27: Camioneta | E27: =IF(Tabla3[[#This Row],[Tipo vehículo]]="","Sin fecha ingreso",LOOKUP(Tabla3[[#This Row],[Tipo vehículo]],Tabla2[Tipo vehículo],Tabla2[Valor diario])) -> 1586 | F27: 2014 | G27: KIA MOTORS | H27: FRONTIER 2.5 | I27: BLANCO INVIERNO | M27: MIGUEL ANGEL CAMACHO CANO | N27: =IF(Tabla3[[#This Row],[fecha ingreso]]>0,TODAY()-Tabla3[[#This Row],[fecha ingreso]],"Sin fecha de ingreso") -> Sin fecha de ingreso | O27: =IF(Tabla3[[#This Row],[Costo diario corral]]="Sin fecha ingreso","faltan datos",Tabla3[[#This Row],[Costo diario corral]]*Tabla3[[#This Row],[DIAS EN CORRAL]]) -> 
A28: 22 | B28: HKWF31 | C28: 2022-05-31 | D28: Station wagon | E28: =IF(Tabla3[[#This Row],[Tipo vehículo]]="","Sin fecha ingreso",LOOKUP(Tabla3[[#This Row],[Tipo vehículo]],Tabla2[Tipo vehículo],Tabla2[Valor diario])) -> 1586 | F28: 2016 | G28: KIA MOTORS | H28: CARENS LX 2.0 | I28: PLATEADO BRILLANTE | J28: Ley 20000 | K28: FISCALIA DE CASABLANCA | L28: RUC 1700118721-K | M28: RODRIGO MAURICIO PEÑALOZA PEÑALOZA | N28: =IF(Tabla3[[#This Row],[fecha ingreso]]>0,TODAY()-Tabla3[[#This Row],[fecha ingreso]],"Sin fecha de ingreso") -> 524 | O28: =IF(Tabla3[[#This Row],[Costo diario corral]]="Sin fecha ingreso","faltan datos",Tabla3[[#This Row],[Costo diario corral]]*Tabla3[[#This Row],[DIAS EN CORRAL]]) -> 831064
A29: 20 | B29: JDLJ54 | C29: 2022-08-29 | D29: Station wagon | E29: =IF(Tabla3[[#This Row],[Tipo vehículo]]="","Sin fecha ingreso",LOOKUP(Tabla3[[#This Row],[Tipo vehículo]],Tabla2[Tipo vehículo],Tabla2[Valor diario])) -> 1586 | F29: 2017 | G29: FORD | H29: EXPLORER 2.3 AUT | I29: ROJO METALICO | J29: Ley 20000 | K29: Fiscalia de Valparaíso | L29: Rruc 2100710140-3 | M29: JOSE LUIS OYARZUN VALDEBENITO | N29: =IF(Tabla3[[#This Row],[fecha ingreso]]>0,TODAY()-Tabla3[[#This Row],[fecha ingreso]],"Sin fecha de ingreso") -> 434 | O29: =IF(Tabla3[[#This Row],[Costo diario corral]]="Sin fecha ingreso","faltan datos",Tabla3[[#This Row],[Costo diario corral]]*Tabla3[[#This Row],[DIAS EN CORRAL]]) -> 688324
A30: 75 | B30: JDRX52 | C30: No estoy seguro si ya la entregaron | D30: Station wagon | F30: 2017 | G30: NISSAN | H30: X TRAIL SENSE 2.5 AUT | I30: AZUL GRAFITO | M30: FRANCISCO JAVIER ITURRIETA BARRERA
A31: 25 | B31: JPCB24 | C31: 2022-05-15 | D31: Station wagon | E31: =IF(Tabla3[[#This Row],[Tipo vehículo]]="","Sin fecha ingreso",LOOKUP(Tabla3[[#This Row],[Tipo vehículo]],Tabla2[Tipo vehículo],Tabla2[Valor diario])) -> 1586 | F31: 2017 | G31: HYUNDAI | H31: TUCSON TL GL ADVANCE S A | I31: GRIS GRAFITO | J31: DOCUMENTACION VENCIDA | K31: JUZGADO POLICIA LOCAL | L31: PARTE 765-2022, OFICIO 264-2022 DE CARABINEROS DE CASABLANCA | M31: GRAFICA IND Y COMERC DE BIENES Y SERV PUB GRUPO INGRAFF LTDA | N31: =IF(Tabla3[[#This Row],[fecha ingreso]]>0,TODAY()-Tabla3[[#This Row],[fecha ingreso]],"Sin fecha de ingreso") -> 540 | O31: =IF(Tabla3[[#This Row],[Costo diario corral]]="Sin fecha ingreso","faltan datos",Tabla3[[#This Row],[Costo diario corral]]*Tabla3[[#This Row],[DIAS EN CORRAL]]) -> 856440
A32: 23 | B32: KF5333 | D32: Automovil | E32: =IF(Tabla3[[#This Row],[Tipo vehículo]]="","Sin fecha ingreso",LOOKUP(Tabla3[[#This Row],[Tipo vehículo]],Tabla2[Tipo vehículo],Tabla2[Valor diario])) -> 1586 | F32: 1992 | G32: CHEVROLET | H32: MONZA 1.8 SLE | I32: AZUL OSCURO | M32: MIGUEL ENRIQUE CERDA SIRA | N32: =IF(Tabla3[[#This Row],[fecha ingreso]]>0,TODAY()-Tabla3[[#This Row],[fecha ingreso]],"Sin fecha de ingreso") -> Sin fecha de ingreso | O32: =IF(Tabla3[[#This Row],[Costo diario corral]]="Sin fecha ingreso","faltan datos",Tabla3[[#This Row],[Costo diario corral]]*Tabla3[[#This Row],[DIAS EN CORRAL]]) -> 
A33: 55 | B33: KJ3531 | D33: Automovil | E33: =IF(Tabla3[[#This Row],[Tipo vehículo]]="","Sin fecha ingreso",LOOKUP(Tabla3[[#This Row],[Tipo vehículo]],Tabla2[Tipo vehículo],Tabla2[Valor diario])) -> 1586 | F33: 1993 | G33: DAEWOO | H33: RACER MT GSI 1.5 | I33: GRIS OSCURO | M33: YESSENIA IVONNE SORIANO SORIANO | N33: =IF(Tabla3[[#This Row],[fecha ingreso]]>0,TODAY()-Tabla3[[#This Row],[fecha ingreso]],"Sin fecha de ingreso") -> Sin fecha de ingreso | O33: =IF(Tabla3[[#This Row],[Costo diario corral]]="Sin fecha ingreso","faltan datos",Tabla3[[#This Row],[Costo diario corral]]*Tabla3[[#This Row],[DIAS EN CORRAL]]) -> 
A34: 5 | B34: KT7219 | C34: 2019-03-08 | D34: Automovil | E34: =IF(Tabla3[[#This Row],[Tipo vehículo]]="","Sin fecha ingreso",LOOKUP(Tabla3[[#This Row],[Tipo vehículo]],Tabla2[Tipo vehículo],Tabla2[Valor diario])) -> 1586 | F34: 1993 | G34: LADA | H34: SAMARA 21080 1.3 | I34: ROJO PURPURA | J34: RETIRO DE LA CALLE POR INSPECTOR | M34: PABLO FERNANDO HENRIQUEZ ALLENDES | N34: =IF(Tabla3[[#This Row],[fecha ingreso]]>0,TODAY()-Tabla3[[#This Row],[fecha ingreso]],"Sin fecha de ingreso") -> 1704 | O34: =IF(Tabla3[[#This Row],[Costo diario corral]]="Sin fecha ingreso","faltan datos",Tabla3[[#This Row],[Costo diario corral]]*Tabla3[[#This Row],[DIAS EN CORRAL]]) -> 2702544
A35: 71 | B35: KU5246 | C35: 2020-06-03 | D35: Automovil | E35: =IF(Tabla3[[#This Row],[Tipo vehículo]]="","Sin fecha ingreso",LOOKUP(Tabla3[[#This Row],[Tipo vehículo]],Tabla2[Tipo vehículo],Tabla2[Valor diario])) -> 1586 | F35: 1993 | G35: MAZDA | H35: 323 GLX 1.6 I | I35: GRIS | J35: ACCIDENTE TRANSITO | K35: JUZGADO POLICIA LOCAL | L35: PARTE : 519 | M35: LUIS DENIS POBLETE RIVERA | N35: =IF(Tabla3[[#This Row],[fecha ingreso]]>0,TODAY()-Tabla3[[#This Row],[fecha ingreso]],"Sin fecha de ingreso") -> 1251 | O35: =IF(Tabla3[[#This Row],[Costo diario corral]]="Sin fecha ingreso","faltan datos",Tabla3[[#This Row],[Costo diario corral]]*Tabla3[[#This Row],[DIAS EN CORRAL]]) -> 1984086
A36: 64 | B36: KU7037 | C36: 2021-10-04 | D36: Automovil | E36: =IF(Tabla3[[#This Row],[Tipo vehículo]]="","Sin fecha ingreso",LOOKUP(Tabla3[[#This Row],[Tipo vehículo]],Tabla2[Tipo vehículo],Tabla2[Valor diario])) -> 1586 | F36: 1993 | G36: OPEL | H36: ASTRA GLE E | I36: ROJO | J36: DOCUMENTOS VENCIDOS | K36: JUZGADO POLICIA LOCAL | L36: PARTE 1238-2021, OFICIO 1061 DE CARABINEROS DE CASABLANCA | M36: PAOLA JACQUELINE ARAVENA LARA | N36: =IF(Tabla3[[#This Row],[fecha ingreso]]>0,TODAY()-Tabla3[[#This Row],[fecha ingreso]],"Sin fecha de ingreso") -> 763 | O36: =IF(Tabla3[[#This Row],[Costo diario corral]]="Sin fecha ingreso","faltan datos",Tabla3[[#This Row],[Costo diario corral]]*Tabla3[[#This Row],[DIAS EN CORRAL]]) -> 1210118
A37: 56 | B37: LB8483 | C37: 2019-09-26 | D37: Automovil | E37: =IF(Tabla3[[#This Row],[Tipo vehículo]]="","Sin fecha ingreso",LOOKUP(Tabla3[[#This Row],[Tipo vehículo]],Tabla2[Tipo vehículo],Tabla2[Valor diario])) -> 1586 | F37: 1994 | G37: FIAT | H37: TEMPRA 1.6 SE | I37: ROJO BURDEO | K37: CARABINEROS CASABLANCA | L37: OFICIO N° 437/06-09-2019 | M37: RAUL MANUEL LOBOS ALFARO | N37: =IF(Tabla3[[#This Row],[fecha ingreso]]>0,TODAY()-Tabla3[[#This Row],[fecha ingreso]],"Sin fecha de ingreso") -> 1502 | O37: =IF(Tabla3[[#This Row],[Costo diario corral]]="Sin fecha ingreso","faltan datos",Tabla3[[#This Row],[Costo diario corral]]*Tabla3[[#This Row],[DIAS EN CORRAL]]) -> 2382172
A38: 28 | B38: LN3408 | D38: Camioneta | E38: =IF(Tabla3[[#This Row],[Tipo vehículo]]="","Sin fecha ingreso",LOOKUP(Tabla3[[#This Row],[Tipo vehículo]],Tabla2[Tipo vehículo],Tabla2[Valor diario])) -> 1586 | F38: 1995 | G38: CHEVROLET | H38: LUV 2,3 D CAB DLX | I38: GRIS OSCURO METALICO | M38: GISELLE MARÍA ARANGUIZ MARGUE | N38: =IF(Tabla3[[#This Row],[fecha ingreso]]>0,TODAY()-Tabla3[[#This Row],[fecha ingreso]],"Sin fecha de ingreso") -> Sin fecha de ingreso | O38: =IF(Tabla3[[#This Row],[Costo diario corral]]="Sin fecha ingreso","faltan datos",Tabla3[[#This Row],[Costo diario corral]]*Tabla3[[#This Row],[DIAS EN CORRAL]]) -> 
A39: 48 | B39: LP4575 | C39: 2019-07-11 | D39: Automovil | E39: =IF(Tabla3[[#This Row],[Tipo vehículo]]="","Sin fecha ingreso",LOOKUP(Tabla3[[#This Row],[Tipo vehículo]],Tabla2[Tipo vehículo],Tabla2[Valor diario])) -> 1586 | F39: 1995 | G39: PEUGEOT | H39: 306 XN 1.4 | I39: GRIS TUNGSTENO | J39: RETIRO POR CARABINEROS ABANDONO EN VIA | K39: JUZGADO POLICIA LOCAL | L39: Oficio 149 Inspección de fecha 11-07-2019 | M39: MONICA DEL CARMEN OSORIO FUENTES | N39: =IF(Tabla3[[#This Row],[fecha ingreso]]>0,TODAY()-Tabla3[[#This Row],[fecha ingreso]],"Sin fecha de ingreso") -> 1579 | O39: =IF(Tabla3[[#This Row],[Costo diario corral]]="Sin fecha ingreso","faltan datos",Tabla3[[#This Row],[Costo diario corral]]*Tabla3[[#This Row],[DIAS EN CORRAL]]) -> 2504294
A40: 21 | B40: LRFW27 | C40: 2022-05-31 | D40: Automovil | E40: =IF(Tabla3[[#This Row],[Tipo vehículo]]="","Sin fecha ingreso",LOOKUP(Tabla3[[#This Row],[Tipo vehículo]],Tabla2[Tipo vehículo],Tabla2[Valor diario])) -> 1586 | F40: 2020 | G40: CHEVROLET | H40: SPARTK GT 1.2 | I40: NEGRO | J40: Robo con intimidación | K40: FISCALIA LOCAL DE VALPARAISO | L40: RUC 2101165937-0 | M40: SEBASTIAN CAMILO CONTRERAS VALLEJOS | N40: =IF(Tabla3[[#This Row],[fecha ingreso]]>0,TODAY()-Tabla3[[#This Row],[fecha ingreso]],"Sin fecha de ingreso") -> 524 | O40: =IF(Tabla3[[#This Row],[Costo diario corral]]="Sin fecha ingreso","faltan datos",Tabla3[[#This Row],[Costo diario corral]]*Tabla3[[#This Row],[DIAS EN CORRAL]]) -> 831064
A41: 61 | B41: LU9320 | D41: Automovil | E41: =IF(Tabla3[[#This Row],[Tipo vehículo]]="","Sin fecha ingreso",LOOKUP(Tabla3[[#This Row],[Tipo vehículo]],Tabla2[Tipo vehículo],Tabla2[Valor diario])) -> 1586 | F41: 1995 | G41: OPEL | H41: VECTRA 1,8 MT E | I41: GRIS CLARO METALICO | M41: NORMAN JOSE BARRERA FREDES | N41: =IF(Tabla3[[#This Row],[fecha ingreso]]>0,TODAY()-Tabla3[[#This Row],[fecha ingreso]],"Sin fecha de ingreso") -> Sin fecha de ingreso | O41: =IF(Tabla3[[#This Row],[Costo diario corral]]="Sin fecha ingreso","faltan datos",Tabla3[[#This Row],[Costo diario corral]]*Tabla3[[#This Row],[DIAS EN CORRAL]]) -> 
A42: 47 | B42: LY9151 | D42: Automovil | E42: =IF(Tabla3[[#This Row],[Tipo vehículo]]="","Sin fecha ingreso",LOOKUP(Tabla3[[#This Row],[Tipo vehículo]],Tabla2[Tipo vehículo],Tabla2[Valor diario])) -> 1586 | F42: 1995 | G42: VOLKSWAGEN | H42: GOLF GL 1,8 | I42: AZUL METALICO | M42: FRANCISCO JULIAN SEGUNDO ALVAREZ PLAZA | N42: =IF(Tabla3[[#This Row],[fecha ingreso]]>0,TODAY()-Tabla3[[#This Row],[fecha ingreso]],"Sin fecha de ingreso") -> Sin fecha de ingreso | O42: =IF(Tabla3[[#This Row],[Costo diario corral]]="Sin fecha ingreso","faltan datos",Tabla3[[#This Row],[Costo diario corral]]*Tabla3[[#This Row],[DIAS EN CORRAL]]) -> 
A43: 30 | B43: NN3567 | C43: 2021-04-26 | D43: Automovil | E43: =IF(Tabla3[[#This Row],[Tipo vehículo]]="","Sin fecha ingreso",LOOKUP(Tabla3[[#This Row],[Tipo vehículo]],Tabla2[Tipo vehículo],Tabla2[Valor diario])) -> 1586 | F43: 1996 | G43: TOYOTA | H43: COROLLA LEI 1.6 | I43: BLANCO | J43: Vehículo abandonado en la Vía pública | K43: JUZGADO POLICIA LOCAL | L43: Causa 130787-21 | M43: REINALDO VERDEJO NAVIA | N43: =IF(Tabla3[[#This Row],[fecha ingreso]]>0,TODAY()-Tabla3[[#This Row],[fecha ingreso]],"Sin fecha de ingreso") -> 924 | O43: =IF(Tabla3[[#This Row],[Costo diario corral]]="Sin fecha ingreso","faltan datos",Tabla3[[#This Row],[Costo diario corral]]*Tabla3[[#This Row],[DIAS EN CORRAL]]) -> 1465464
A44: 38 | B44: NU6368 | D44: Station wagon | E44: =IF(Tabla3[[#This Row],[Tipo vehículo]]="","Sin fecha ingreso",LOOKUP(Tabla3[[#This Row],[Tipo vehículo]],Tabla2[Tipo vehículo],Tabla2[Valor diario])) -> 1586 | F44: 1995 | G44: FORD | H44: ESCORT LX 1.9 | I44: ROJO ELECTRICO | M44: JUAN WLADIMIR SILVA JOFRE | N44: =IF(Tabla3[[#This Row],[fecha ingreso]]>0,TODAY()-Tabla3[[#This Row],[fecha ingreso]],"Sin fecha de ingreso") -> Sin fecha de ingreso | O44: =IF(Tabla3[[#This Row],[Costo diario corral]]="Sin fecha ingreso","faltan datos",Tabla3[[#This Row],[Costo diario corral]]*Tabla3[[#This Row],[DIAS EN CORRAL]]) -> 
A45: 65 | B45: NV3300 | D45: Automovil | E45: =IF(Tabla3[[#This Row],[Tipo vehículo]]="","Sin fecha ingreso",LOOKUP(Tabla3[[#This Row],[Tipo vehículo]],Tabla2[Tipo vehículo],Tabla2[Valor diario])) -> 1586 | F45: 1996 | G45: NISSAN | H45: V16 EX 1.6 | I45: NEGRO GRIS | M45: ESTEBAN PATRICIO ROJAS BERRIOS | N45: =IF(Tabla3[[#This Row],[fecha ingreso]]>0,TODAY()-Tabla3[[#This Row],[fecha ingreso]],"Sin fecha de ingreso") -> Sin fecha de ingreso | O45: =IF(Tabla3[[#This Row],[Costo diario corral]]="Sin fecha ingreso","faltan datos",Tabla3[[#This Row],[Costo diario corral]]*Tabla3[[#This Row],[DIAS EN CORRAL]]) -> 
A46: 60 | B46: NX5819 | D46: Automovil | E46: =IF(Tabla3[[#This Row],[Tipo vehículo]]="","Sin fecha ingreso",LOOKUP(Tabla3[[#This Row],[Tipo vehículo]],Tabla2[Tipo vehículo],Tabla2[Valor diario])) -> 1586 | F46: 1996 | G46: KIA MOTORS | H46: SEPHIA GTX 1.6 | I46: VERDE OLIVO | M46: LUIS ENRIQUE COLLARTE VERA | N46: =IF(Tabla3[[#This Row],[fecha ingreso]]>0,TODAY()-Tabla3[[#This Row],[fecha ingreso]],"Sin fecha de ingreso") -> Sin fecha de ingreso | O46: =IF(Tabla3[[#This Row],[Costo diario corral]]="Sin fecha ingreso","faltan datos",Tabla3[[#This Row],[Costo diario corral]]*Tabla3[[#This Row],[DIAS EN CORRAL]]) -> 
A47: 45 | B47: PA5720 | C47: 2019-09-26 | D47: Automovil | E47: =IF(Tabla3[[#This Row],[Tipo vehículo]]="","Sin fecha ingreso",LOOKUP(Tabla3[[#This Row],[Tipo vehículo]],Tabla2[Tipo vehículo],Tabla2[Valor diario])) -> 1586 | F47: 1996 | G47: NISSAN | H47: V-16 SENTRA 1.6 | I47: ROJO BURDEO | J47: RETIRO DE LA CALLE POR INSPECTOR | K47: CARABINEROS CASABLANCA | L47: OFICIO N°489 | M47: ANDRES CEFERINO CARREÑO FARIAS | N47: =IF(Tabla3[[#This Row],[fecha ingreso]]>0,TODAY()-Tabla3[[#This Row],[fecha ingreso]],"Sin fecha de ingreso") -> 1502 | O47: =IF(Tabla3[[#This Row],[Costo diario corral]]="Sin fecha ingreso","faltan datos",Tabla3[[#This Row],[Costo diario corral]]*Tabla3[[#This Row],[DIAS EN CORRAL]]) -> 2382172
A48: 59 | B48: PE7620 | C48: 2021-04-26 | D48: Automovil | E48: =IF(Tabla3[[#This Row],[Tipo vehículo]]="","Sin fecha ingreso",LOOKUP(Tabla3[[#This Row],[Tipo vehículo]],Tabla2[Tipo vehículo],Tabla2[Valor diario])) -> 1586 | F48: 1996 | G48: CHEVROLET | H48: CAVALIER 2.4 AUT | I48: ROJO BURDEO | J48: Abandonado en la vía pública | K48: JUZGADO POLICIA LOCAL | L48: Causa 130787-21 | M48: MAXIMO ANTONIO CRUZ LEIVA | N48: =IF(Tabla3[[#This Row],[fecha ingreso]]>0,TODAY()-Tabla3[[#This Row],[fecha ingreso]],"Sin fecha de ingreso") -> 924 | O48: =IF(Tabla3[[#This Row],[Costo diario corral]]="Sin fecha ingreso","faltan datos",Tabla3[[#This Row],[Costo diario corral]]*Tabla3[[#This Row],[DIAS EN CORRAL]]) -> 1465464
A49: 44 | B49: PL1885 | C49: 2019-07-11 | D49: Automovil | E49: =IF(Tabla3[[#This Row],[Tipo vehículo]]="","Sin fecha ingreso",LOOKUP(Tabla3[[#This Row],[Tipo vehículo]],Tabla2[Tipo vehículo],Tabla2[Valor diario])) -> 1586 | F49: 1997 | G49: RENAULT | H49: CLIO RN 1.2 | I49: ROJO NACRE | J49: CONDUCIR SIN DOCUMENTOS | K49: JUZGADO POLICIA LOCAL | L49: Oficio 149 de Inspeccón de fecha 11-07-2019 | M49: JUAN CARLOS FERNANDEZ JARA | N49: =IF(Tabla3[[#This Row],[fecha ingreso]]>0,TODAY()-Tabla3[[#This Row],[fecha ingreso]],"Sin fecha de ingreso") -> 1579 | O49: =IF(Tabla3[[#This Row],[Costo diario corral]]="Sin fecha ingreso","faltan datos",Tabla3[[#This Row],[Costo diario corral]]*Tabla3[[#This Row],[DIAS EN CORRAL]]) -> 2504294
A50: 46 | B50: PN4484 | D50: Automovil | E50: =IF(Tabla3[[#This Row],[Tipo vehículo]]="","Sin fecha ingreso",LOOKUP(Tabla3[[#This Row],[Tipo vehículo]],Tabla2[Tipo vehículo],Tabla2[Valor diario])) -> 1586 | F50: 1996 | G50: OPEL | H50: CORSA ECO | I50: AZUL ATLANTIS MET | M50: PATRICIO ERNESTO TORO REYES | N50: =IF(Tabla3[[#This Row],[fecha ingreso]]>0,TODAY()-Tabla3[[#This Row],[fecha ingreso]],"Sin fecha de ingreso") -> Sin fecha de ingreso | O50: =IF(Tabla3[[#This Row],[Costo diario corral]]="Sin fecha ingreso","faltan datos",Tabla3[[#This Row],[Costo diario corral]]*Tabla3[[#This Row],[DIAS EN CORRAL]]) -> 
A51: 10 | B51: PP9422 | C51: 2019-06-03 | D51: Automovil | E51: =IF(Tabla3[[#This Row],[Tipo vehículo]]="","Sin fecha ingreso",LOOKUP(Tabla3[[#This Row],[Tipo vehículo]],Tabla2[Tipo vehículo],Tabla2[Valor diario])) -> 1586 | F51: 1996 | G51: FORD | H51: ESCORT CLX 1.4 | I51: GRIS OSCURO | J51: RETIRO DE LA CALLE POR INSPECTOR | K51: CARABINEROS PEÑUELA | L51: OFICIO: 413 | M51: JORGE MARCELO GONZALEZ MORALES | N51: =IF(Tabla3[[#This Row],[fecha ingreso]]>0,TODAY()-Tabla3[[#This Row],[fecha ingreso]],"Sin fecha de ingreso") -> 1617 | O51: =IF(Tabla3[[#This Row],[Costo diario corral]]="Sin fecha ingreso","faltan datos",Tabla3[[#This Row],[Costo diario corral]]*Tabla3[[#This Row],[DIAS EN CORRAL]]) -> 2564562
A52: 4 | B52: PV5670 | C52: 2019-03-08 | D52: Automovil | E52: =IF(Tabla3[[#This Row],[Tipo vehículo]]="","Sin fecha ingreso",LOOKUP(Tabla3[[#This Row],[Tipo vehículo]],Tabla2[Tipo vehículo],Tabla2[Valor diario])) -> 1586 | F52: 1997 | G52: CHEVROLET | H52: MONZA GL 1.8 | I52: NEGRO ROJO | J52: TRANSFERIDO DESDE CARABINEROS PEÑUELA | M52: ALEJANDRO PATRICIO BEAS ARAYA | N52: =IF(Tabla3[[#This Row],[fecha ingreso]]>0,TODAY()-Tabla3[[#This Row],[fecha ingreso]],"Sin fecha de ingreso") -> 1704 | O52: =IF(Tabla3[[#This Row],[Costo diario corral]]="Sin fecha ingreso","faltan datos",Tabla3[[#This Row],[Costo diario corral]]*Tabla3[[#This Row],[DIAS EN CORRAL]]) -> 2702544
A53: 26 | B53: RPWP22 | C53: 2022-09-06 | D53: Camioneta | E53: =IF(Tabla3[[#This Row],[Tipo vehículo]]="","Sin fecha ingreso",LOOKUP(Tabla3[[#This Row],[Tipo vehículo]],Tabla2[Tipo vehículo],Tabla2[Valor diario])) -> 1586 | F53: 2022 | G53: MAZDA | H53: ALL NEW BT 50 4X4 3,0 AUT | I53: GRIS ROCA | J53: Conduccion en estado de ebriedad con resultado de muerte, Chocada | K53: Ministerio Público, Fiscalía | L53: Parte 804 de fecha 28-05-2022, RUC 2210026104-2 | M53: AGRICOLA MCB SPA | N53: =IF(Tabla3[[#This Row],[fecha ingreso]]>0,TODAY()-Tabla3[[#This Row],[fecha ingreso]],"Sin fecha de ingreso") -> 426 | O53: =IF(Tabla3[[#This Row],[Costo diario corral]]="Sin fecha ingreso","faltan datos",Tabla3[[#This Row],[Costo diario corral]]*Tabla3[[#This Row],[DIAS EN CORRAL]]) -> 675636
A54: 67 | B54: RR6350 | D54: Automovil | E54: =IF(Tabla3[[#This Row],[Tipo vehículo]]="","Sin fecha ingreso",LOOKUP(Tabla3[[#This Row],[Tipo vehículo]],Tabla2[Tipo vehículo],Tabla2[Valor diario])) -> 1586 | F54: 1997 | G54: DAEWOO | H54: RACER ETI 1.5 | I54: NEGRO | M54: MARIO ENRIQUE HERACLIO GUERRERO DELGADO | N54: =IF(Tabla3[[#This Row],[fecha ingreso]]>0,TODAY()-Tabla3[[#This Row],[fecha ingreso]],"Sin fecha de ingreso") -> Sin fecha de ingreso | O54: =IF(Tabla3[[#This Row],[Costo diario corral]]="Sin fecha ingreso","faltan datos",Tabla3[[#This Row],[Costo diario corral]]*Tabla3[[#This Row],[DIAS EN CORRAL]]) -> 
A55: 52 | B55: SF8830 | C55: 2022-06-14 | D55: Automovil | E55: =IF(Tabla3[[#This Row],[Tipo vehículo]]="","Sin fecha ingreso",LOOKUP(Tabla3[[#This Row],[Tipo vehículo]],Tabla2[Tipo vehículo],Tabla2[Valor diario])) -> 1586 | F55: 1998 | G55: HYUNDAI | H55: ACCENT LS 1.5 | I55: AZUL ELECTRICO | J55: Vehículo abandonado en la Vía pública | K55: JUZGADO POLICIA LOCAL | L55: PARTE NRO. 103-2022, OF 164-2022 DE CARABINEROS DE CASABLANCA | M55: PEDRO ENRIQUE MUÑOZ HIGUERAS | N55: =IF(Tabla3[[#This Row],[fecha ingreso]]>0,TODAY()-Tabla3[[#This Row],[fecha ingreso]],"Sin fecha de ingreso") -> 510 | O55: =IF(Tabla3[[#This Row],[Costo diario corral]]="Sin fecha ingreso","faltan datos",Tabla3[[#This Row],[Costo diario corral]]*Tabla3[[#This Row],[DIAS EN CORRAL]]) -> 808860
A56: 73 | B56: SG7316 | D56: Automovil | E56: =IF(Tabla3[[#This Row],[Tipo vehículo]]="","Sin fecha ingreso",LOOKUP(Tabla3[[#This Row],[Tipo vehículo]],Tabla2[Tipo vehículo],Tabla2[Valor diario])) -> 1586 | F56: 1998 | G56: CITROEN | H56: XSARA SX 1.6 | I56: ROJO | M56: MIGUEL ERNESTO ARANDA ALVEAL | N56: =IF(Tabla3[[#This Row],[fecha ingreso]]>0,TODAY()-Tabla3[[#This Row],[fecha ingreso]],"Sin fecha de ingreso") -> Sin fecha de ingreso | O56: =IF(Tabla3[[#This Row],[Costo diario corral]]="Sin fecha ingreso","faltan datos",Tabla3[[#This Row],[Costo diario corral]]*Tabla3[[#This Row],[DIAS EN CORRAL]]) -> 
A57: 24 | B57: CLTR85 | C57: 2022-05-31 | D57: Furgón | E57: =IF(Tabla3[[#This Row],[Tipo vehículo]]="","Sin fecha ingreso",LOOKUP(Tabla3[[#This Row],[Tipo vehículo]],Tabla2[Tipo vehículo],Tabla2[Valor diario])) -> 1586 | G57: MERCEDES BENZ | H57: AMBULANCIA | I57: NEGRO | J57: LEY 20000 | K57: FISCALIA LOCAL DE VALPARAISO | L57: RUC 1501126040-0 | N57: =IF(Tabla3[[#This Row],[fecha ingreso]]>0,TODAY()-Tabla3[[#This Row],[fecha ingreso]],"Sin fecha de ingreso") -> 524 | O57: =IF(Tabla3[[#This Row],[Costo diario corral]]="Sin fecha ingreso","faltan datos",Tabla3[[#This Row],[Costo diario corral]]*Tabla3[[#This Row],[DIAS EN CORRAL]]) -> 831064
A58: 33 | B58: SP5373 | D58: Automovil | E58: =IF(Tabla3[[#This Row],[Tipo vehículo]]="","Sin fecha ingreso",LOOKUP(Tabla3[[#This Row],[Tipo vehículo]],Tabla2[Tipo vehículo],Tabla2[Valor diario])) -> 1586 | F58: 1993 | G58: RENAULT | H58: SAFRANE 3.0 | I58: GRIS | M58: ALDO RENE MAYOR OLIVOS | N58: =IF(Tabla3[[#This Row],[fecha ingreso]]>0,TODAY()-Tabla3[[#This Row],[fecha ingreso]],"Sin fecha de ingreso") -> Sin fecha de ingreso | O58: =IF(Tabla3[[#This Row],[Costo diario corral]]="Sin fecha ingreso","faltan datos",Tabla3[[#This Row],[Costo diario corral]]*Tabla3[[#This Row],[DIAS EN CORRAL]]) -> 
A59: 34 | B59: SR7669 | D59: Automovil | E59: =IF(Tabla3[[#This Row],[Tipo vehículo]]="","Sin fecha ingreso",LOOKUP(Tabla3[[#This Row],[Tipo vehículo]],Tabla2[Tipo vehículo],Tabla2[Valor diario])) -> 1586 | F59: 1998 | G59: FORD | H59: FIESTA LX 1.3 | I59: ROJO LISO | M59: FREDY EDUARDO VALLADARES VALLADARES | N59: =IF(Tabla3[[#This Row],[fecha ingreso]]>0,TODAY()-Tabla3[[#This Row],[fecha ingreso]],"Sin fecha de ingreso") -> Sin fecha de ingreso | O59: =IF(Tabla3[[#This Row],[Costo diario corral]]="Sin fecha ingreso","faltan datos",Tabla3[[#This Row],[Costo diario corral]]*Tabla3[[#This Row],[DIAS EN CORRAL]]) -> 
A60: 15 | B60: TA3129 | D60: Automovil | E60: =IF(Tabla3[[#This Row],[Tipo vehículo]]="","Sin fecha ingreso",LOOKUP(Tabla3[[#This Row],[Tipo vehículo]],Tabla2[Tipo vehículo],Tabla2[Valor diario])) -> 1586 | F60: 1999 | G60: MAZDA | H60: ARTIS GLX BPS 1,6 | I60: PLATEADO | M60: CARLOS ALBERTO GONZALEZ PEREZ | N60: =IF(Tabla3[[#This Row],[fecha ingreso]]>0,TODAY()-Tabla3[[#This Row],[fecha ingreso]],"Sin fecha de ingreso") -> Sin fecha de ingreso | O60: =IF(Tabla3[[#This Row],[Costo diario corral]]="Sin fecha ingreso","faltan datos",Tabla3[[#This Row],[Costo diario corral]]*Tabla3[[#This Row],[DIAS EN CORRAL]]) -> 
A61: 68 | B61: TC5232 | C61: 2020-11-30 | D61: Automovil | E61: =IF(Tabla3[[#This Row],[Tipo vehículo]]="","Sin fecha ingreso",LOOKUP(Tabla3[[#This Row],[Tipo vehículo]],Tabla2[Tipo vehículo],Tabla2[Valor diario])) -> 1586 | F61: 1999 | G61: HYUNDAI | H61: ACCENT GLS 1.5 | I61: GRIS | J61: RETIRO DE LA CALLE POR INSPECTOR | K61: JUZGADO POLICIA LOCAL | L61: PARTE: 2376 | M61: SERGIO EDUARDO NARBONA PAEZ | N61: =IF(Tabla3[[#This Row],[fecha ingreso]]>0,TODAY()-Tabla3[[#This Row],[fecha ingreso]],"Sin fecha de ingreso") -> 1071 | O61: =IF(Tabla3[[#This Row],[Costo diario corral]]="Sin fecha ingreso","faltan datos",Tabla3[[#This Row],[Costo diario corral]]*Tabla3[[#This Row],[DIAS EN CORRAL]]) -> 1698606
A62: 40 | B62: TT1446 | C62: 2019-03-08 | D62: Station wagon | E62: =IF(Tabla3[[#This Row],[Tipo vehículo]]="","Sin fecha ingreso",LOOKUP(Tabla3[[#This Row],[Tipo vehículo]],Tabla2[Tipo vehículo],Tabla2[Valor diario])) -> 1586 | F62: 2000 | G62: FORD | H62: ESCORT CLX 1.8 | I62: ROJO LISO | J62: INCAUTADO POR PARTICIPE DE ROBO | M62: SOLANGE PAOLA ASTORGA VIVAR | N62: =IF(Tabla3[[#This Row],[fecha ingreso]]>0,TODAY()-Tabla3[[#This Row],[fecha ingreso]],"Sin fecha de ingreso") -> 1704 | O62: =IF(Tabla3[[#This Row],[Costo diario corral]]="Sin fecha ingreso","faltan datos",Tabla3[[#This Row],[Costo diario corral]]*Tabla3[[#This Row],[DIAS EN CORRAL]]) -> 2702544
A63: 63 | B63: TV8918 | D63: Furgón | E63: =IF(Tabla3[[#This Row],[Tipo vehículo]]="","Sin fecha ingreso",LOOKUP(Tabla3[[#This Row],[Tipo vehículo]],Tabla2[Tipo vehículo],Tabla2[Valor diario])) -> 1586 | F63: 2000 | G63: CHEVROLET | H63: COMBO | I63: BLANCO | M63: DAVID HECTOR TRIVIÑOS RUBILAR | N63: =IF(Tabla3[[#This Row],[fecha ingreso]]>0,TODAY()-Tabla3[[#This Row],[fecha ingreso]],"Sin fecha de ingreso") -> Sin fecha de ingreso | O63: =IF(Tabla3[[#This Row],[Costo diario corral]]="Sin fecha ingreso","faltan datos",Tabla3[[#This Row],[Costo diario corral]]*Tabla3[[#This Row],[DIAS EN CORRAL]]) -> 
A64: 8 | B64: UC3847 | C64: 2019-03-08 | D64: Station wagon | E64: =IF(Tabla3[[#This Row],[Tipo vehículo]]="","Sin fecha ingreso",LOOKUP(Tabla3[[#This Row],[Tipo vehículo]],Tabla2[Tipo vehículo],Tabla2[Valor diario])) -> 1586 | F64: 2001 | G64: HYUNDAI | H64: SANTAMO DLX | I64: BLANCO BEIGE | J64: RETIRO DE LA CALLE POR INSPECTOR | K64: JUZGADO POLICIA LOCAL | M64: ARMANDO DEL CARMEN RIVERA DE LA FUENTE | N64: =IF(Tabla3[[#This Row],[fecha ingreso]]>0,TODAY()-Tabla3[[#This Row],[fecha ingreso]],"Sin fecha de ingreso") -> 1704 | O64: =IF(Tabla3[[#This Row],[Costo diario corral]]="Sin fecha ingreso","faltan datos",Tabla3[[#This Row],[Costo diario corral]]*Tabla3[[#This Row],[DIAS EN CORRAL]]) -> 2702544
A65: 6 | B65: VN7855 | C65: 2019-08-02 | D65: Automovil | E65: =IF(Tabla3[[#This Row],[Tipo vehículo]]="","Sin fecha ingreso",LOOKUP(Tabla3[[#This Row],[Tipo vehículo]],Tabla2[Tipo vehículo],Tabla2[Valor diario])) -> 1586 | F65: 1995 | G65: FORD | H65: ASPIRE 1.1 AUT | I65: ROJO | J65: RETIRO POR INSPECTOR MUNICIPAL | K65: JUZGADO POLICIA LOCAL | M65: EDUARDO AURELIO PIÑA ROMERO | N65: =IF(Tabla3[[#This Row],[fecha ingreso]]>0,TODAY()-Tabla3[[#This Row],[fecha ingreso]],"Sin fecha de ingreso") -> 1557 | O65: =IF(Tabla3[[#This Row],[Costo diario corral]]="Sin fecha ingreso","faltan datos",Tabla3[[#This Row],[Costo diario corral]]*Tabla3[[#This Row],[DIAS EN CORRAL]]) -> 2469402
A66: 29 | B66: VY1324 | D66: Automovil | E66: =IF(Tabla3[[#This Row],[Tipo vehículo]]="","Sin fecha ingreso",LOOKUP(Tabla3[[#This Row],[Tipo vehículo]],Tabla2[Tipo vehículo],Tabla2[Valor diario])) -> 1586 | F66: 2003 | G66: FIAT | H66: SIENA EX FIRE 1.3 | I66: ROJO ALPINO | M66: JORGE EDUARDO MARTINEZ GONZALEZ | N66: =IF(Tabla3[[#This Row],[fecha ingreso]]>0,TODAY()-Tabla3[[#This Row],[fecha ingreso]],"Sin fecha de ingreso") -> Sin fecha de ingreso | O66: =IF(Tabla3[[#This Row],[Costo diario corral]]="Sin fecha ingreso","faltan datos",Tabla3[[#This Row],[Costo diario corral]]*Tabla3[[#This Row],[DIAS EN CORRAL]]) -> 
A67: 72 | B67: WA1207 | C67: 2021-04-26 | D67: Automovil | E67: =IF(Tabla3[[#This Row],[Tipo vehículo]]="","Sin fecha ingreso",LOOKUP(Tabla3[[#This Row],[Tipo vehículo]],Tabla2[Tipo vehículo],Tabla2[Valor diario])) -> 1586 | F67: 2006 | G67: MAZDA | H67: 6 2,0 AUT | I67: PLATEADO METALICO | J67: Abandonado en la vía pública | K67: JUZGADO POLICIA LOCAL | L67: Causa 130787-21 | M67: ALEXIS ALFONSO GANGA SALINAS | N67: =IF(Tabla3[[#This Row],[fecha ingreso]]>0,TODAY()-Tabla3[[#This Row],[fecha ingreso]],"Sin fecha de ingreso") -> 924 | O67: =IF(Tabla3[[#This Row],[Costo diario corral]]="Sin fecha ingreso","faltan datos",Tabla3[[#This Row],[Costo diario corral]]*Tabla3[[#This Row],[DIAS EN CORRAL]]) -> 1465464
A68: 31 | B68: XB9749 | C68: 2020-02-25 | D68: RETROEXCAVADORA | E68: =IF(Tabla3[[#This Row],[Tipo vehículo]]="","Sin fecha ingreso",LOOKUP(Tabla3[[#This Row],[Tipo vehículo]],Tabla2[Tipo vehículo],Tabla2[Valor diario])) -> 317.26 | F68: 2003 | G68: JCB | H68: JCB214E2 | I68: AMARILLO | J68: DOCUMENTOS VENCIDOS | K68: JUZGADO POLICIA LOCAL | L68: PARTE: 290 | M68: MARCELA ANDREA OYARZO HERRERA | N68: =IF(Tabla3[[#This Row],[fecha ingreso]]>0,TODAY()-Tabla3[[#This Row],[fecha ingreso]],"Sin fecha de ingreso") -> 1350 | O68: =IF(Tabla3[[#This Row],[Costo diario corral]]="Sin fecha ingreso","faltan datos",Tabla3[[#This Row],[Costo diario corral]]*Tabla3[[#This Row],[DIAS EN CORRAL]]) -> 428301
A69: 53 | B69: XX7653 | C69: 2022-01-05 | D69: Camioneta | E69: =IF(Tabla3[[#This Row],[Tipo vehículo]]="","Sin fecha ingreso",LOOKUP(Tabla3[[#This Row],[Tipo vehículo]],Tabla2[Tipo vehículo],Tabla2[Valor diario])) -> 1586 | F69: 2004 | G69: KIA MOTORS | H69: FRONTIER PLUS 2.7 | I69: BLANCO | J69: DOCUMENTACION VENCIDA | K69: JUZGADO POLICIA LOCAL | L69: PARTE 17-2022, OF. 10-2022 de Carabineros de Casablanca | M69: MATIAS ANDRES RODRIGUEZ SUAREZ | N69: =IF(Tabla3[[#This Row],[fecha ingreso]]>0,TODAY()-Tabla3[[#This Row],[fecha ingreso]],"Sin fecha de ingreso") -> 670 | O69: =IF(Tabla3[[#This Row],[Costo diario corral]]="Sin fecha ingreso","faltan datos",Tabla3[[#This Row],[Costo diario corral]]*Tabla3[[#This Row],[DIAS EN CORRAL]]) -> 1062620
A70: 36 | B70: ZR4468 | C70: 2021-01-19 | D70: Furgón | E70: =IF(Tabla3[[#This Row],[Tipo vehículo]]="","Sin fecha ingreso",LOOKUP(Tabla3[[#This Row],[Tipo vehículo]],Tabla2[Tipo vehículo],Tabla2[Valor diario])) -> 1586 | F70: 2006 | G70: RENAULT | H70: KANGOO RL 1.9 | I70: BLANCO GLACIER | J70: ABANDONADO | K70: JUZGADO POLICIA LOCAL | L70: PARTE 52-2021, | M70: JUAN GILBERTO FREDES RAMIREZ | N70: =IF(Tabla3[[#This Row],[fecha ingreso]]>0,TODAY()-Tabla3[[#This Row],[fecha ingreso]],"Sin fecha de ingreso") -> 1021 | O70: =IF(Tabla3[[#This Row],[Costo diario corral]]="Sin fecha ingreso","faltan datos",Tabla3[[#This Row],[Costo diario corral]]*Tabla3[[#This Row],[DIAS EN CORRAL]]) -> 1619306
A71: 2 | B71: ZS4753 | C71: 2022-05-05 | D71: Station wagon | E71: =IF(Tabla3[[#This Row],[Tipo vehículo]]="","Sin fecha ingreso",LOOKUP(Tabla3[[#This Row],[Tipo vehículo]],Tabla2[Tipo vehículo],Tabla2[Valor diario])) -> 1586 | F71: 2006 | G71: CHEVROLET | H71: VIVANT LS 1.6 | I71: BEIGE MELANGE | J71: ABANDONADO EN LA vía pública | K71: JUZGADO POLICIA LOCAL | L71: PARTE 711-2022, OFICIO 246-2022 DE CARABINEROS DE CASABLANCA | M71: LESLY DANIELA TAPIA MELLADO | N71: =IF(Tabla3[[#This Row],[fecha ingreso]]>0,TODAY()-Tabla3[[#This Row],[fecha ingreso]],"Sin fecha de ingreso") -> 550 | O71: =IF(Tabla3[[#This Row],[Costo diario corral]]="Sin fecha ingreso","faltan datos",Tabla3[[#This Row],[Costo diario corral]]*Tabla3[[#This Row],[DIAS EN CORRAL]]) -> 872300
B72: QG237 | C72: 2021-01-14 | D72: Moto | E72: =IF(Tabla3[[#This Row],[Tipo vehículo]]="","Sin fecha ingreso",LOOKUP(Tabla3[[#This Row],[Tipo vehículo]],Tabla2[Tipo vehículo],Tabla2[Valor diario])) -> 317.26 | G72: YAMAHA | H72: YZF | I72: NEGRO | J72: DOCUMENTOS VENCIDOS | K72: JUZGADO POLICIA LOCAL | L72: Sin Antecedentes | M72: NICOLAS LUIS SUAREZ LOBOS | N72: =IF(Tabla3[[#This Row],[fecha ingreso]]>0,TODAY()-Tabla3[[#This Row],[fecha ingreso]],"Sin fecha de ingreso") -> 1026 | O72: =IF(Tabla3[[#This Row],[Costo diario corral]]="Sin fecha ingreso","faltan datos",Tabla3[[#This Row],[Costo diario corral]]*Tabla3[[#This Row],[DIAS EN CORRAL]]) -> 325508.76

Sheet tablas
A2: UTM Septiembre 2023 | B2: 63452
A5: Tipo vehículo | B5: Valor diario
A6: Automovil | B6: =ROUND($B$2*0.025,0) -> 1586
A7: Biciceta o similar | B7: =ROUND($B$2*0.005,0) -> 317
A8: Bus | B8: =ROUND($B$2*0.05,0) -> 3173
A9: Camión | B9: =ROUND($B$2*0.05,0) -> 3173
A10: Camioneta | B10: =ROUND($B$2*0.025,0) -> 1586
A11: Carro arrastre | B11: =ROUND($B$2*0.05,0) -> 3173
A12: Cuatrimoto | B12: =$B$2*0.005 -> 317.26
A13: Furgón | B13: =ROUND($B$2*0.025,0) -> 1586
A14: Maquinaria industrial | B14: =ROUND($B$2*0.05,0) -> 3173
A15: Microbus | B15: =ROUND($B$2*0.05,0) -> 3173
A16: Minibús | B16: =ROUND($B$2*0.025,0) -> 1586
A17: Minibús escolar | B17: =ROUND($B$2*0.025,0) -> 1586
A18: Moto | B18: =$B$2*0.005 -> 317.26
A19: Station wagon | B19: =ROUND($B$2*0.025,0) -> 1586
A20: Taxi básico | B20: 1586
A21: Taxi colectivo | B21: 1586
A22: Taxi ejecutivo | B22: 1586
A23: Taxi turismo | B23: 1586
A24: Taxibus | B24: =ROUND($B$2*0.05,0) -> 3173
A25: Todo terreno | B25: 1586
A26: Tractocamión | B26: =ROUND($B$2*0.05,0) -> 3173
A27: Triciclo (torito) | B27: =ROUND($B$2*0.005,0) -> 317

Sheet Instrucciones
A1: Instrucciones para lleando de la planilla
A3: 1. Se deben registrar todos los vehículos y se les tomará una fotografía para registro
A4: 2. Se debe solicitar el CAV del vehículo al JPL para registrar sus propietarios
A5: 3. Se deberán escanear el acta de entrega de Carabineros y linkearla en la celda correspondiente
A6: 4. Al momento de dar de baja el vehículo, también se deberá registrar el acta de entrega con el comprobante de pago de los derechos
